Workbook

Sheet PĀRVEIDOŠANAS IZMAKSAS
B1: VIRTUVES PĀRVEIDOŠANAS IZMAKSU DARBLAPA
B3: Kategorija | C3: Preces | D3: Skaits | E3: Plānotās izmaksas | F3: Faktiskās izmaksas | G3: Kopējās plānotās izmaksas | H3: Kopējās faktiskās izmaksas
B4: Skapīši | C4: Apakšējie skapīši: Standarta moduļu (daudzums lineāros metros) | D4: 25 | E4: 5.00 EUR | G4: =Dati[[#This Row],[Skaits]]*Dati[[#This Row],[Plānotās izmaksas]] -> 125 EUR | H4: =Dati[[#This Row],[Skaits]]*Dati[[#This Row],[Faktiskās izmaksas]] -> 0 EUR
B5: Skapīši | C5: Augšējie skapīši: Standarta moduļu (daudzums lineāros metros) | D5: 25 | E5: 3.50 EUR | G5: =Dati[[#This Row],[Skaits]]*Dati[[#This Row],[Plānotās izmaksas]] -> 88 EUR | H5: =Dati[[#This Row],[Skaits]]*Dati[[#This Row],[Faktiskās izmaksas]] -> 0 EUR
B6: Tīrīšanas rīki | C6: Trauku mazgājamā mašīna: standarta | D6: 1 | E6: 250.00 EUR | G6: =Dati[[#This Row],[Skaits]]*Dati[[#This Row],[Plānotās izmaksas]] -> 250 EUR | H6: =Dati[[#This Row],[Skaits]]*Dati[[#This Row],[Faktiskās izmaksas]] -> 0 EUR
B7: Tīrīšanas rīki | C7: Atkritumu urna: standarta | D7: 1 | E7: 175.00 EUR | G7: =Dati[[#This Row],[Skaits]]*Dati[[#This Row],[Plānotās izmaksas]] -> 175 EUR | H7: =Dati[[#This Row],[Skaits]]*Dati[[#This Row],[Faktiskās izmaksas]] -> 0 EUR
B8: Virtuves ierīces | C8: Diapazons: iebīdāmā standarta | D8: 1 | E8: 375.00 EUR | G8: =Dati[[#This Row],[Skaits]]*Dati[[#This Row],[Plānotās izmaksas]] -> 375 EUR | H8: =Dati[[#This Row],[Skaits]]*Dati[[#This Row],[Faktiskās izmaksas]] -> 0 EUR
B9: Virtuves ierīces | C9: Mikroviļņu krāsniņa: standarta | D9: 1 | E9: 300.00 EUR | G9: =Dati[[#This Row],[Skaits]]*Dati[[#This Row],[Plānotās izmaksas]] -> 300 EUR | H9: =Dati[[#This Row],[Skaits]]*Dati[[#This Row],[Faktiskās izmaksas]] -> 0 EUR
B10: Letes | C10: Cietas virsmas (daudzums lineāros metros) | D10: 23 | E10: 10.00 EUR | G10: =Dati[[#This Row],[Skaits]]*Dati[[#This Row],[Plānotās izmaksas]] -> 230 EUR | H10: =Dati[[#This Row],[Skaits]]*Dati[[#This Row],[Faktiskās izmaksas]] -> 0 EUR
B11: Durvis | C11: Interjers: finierēts panelis | D11: 1 | E11: 65.00 EUR | G11: =Dati[[#This Row],[Skaits]]*Dati[[#This Row],[Plānotās izmaksas]] -> 65 EUR | H11: =Dati[[#This Row],[Skaits]]*Dati[[#This Row],[Faktiskās izmaksas]] -> 0 EUR
B12: Papildu | C12: Papildu: tūlītēja karstā ūdens padeve, standarta | D12: 1 | E12: 120.00 EUR | G12: =Dati[[#This Row],[Skaits]]*Dati[[#This Row],[Plānotās izmaksas]] -> 120 EUR | H12: =Dati[[#This Row],[Skaits]]*Dati[[#This Row],[Faktiskās izmaksas]] -> 0 EUR
B13: Papildu | C13: Papildu: Mazgāšanas līdzekļa dozators | D13: 1 | E13: 40.00 EUR | G13: =Dati[[#This Row],[Skaits]]*Dati[[#This Row],[Plānotās izmaksas]] -> 40 EUR | H13: =Dati[[#This Row],[Skaits]]*Dati[[#This Row],[Faktiskās izmaksas]] -> 0 EUR
B14: Jaucējkrāni | C14: Jaucējkrāns: sviras, standarta | D14: 1 | E14: 130.00 EUR | G14: =Dati[[#This Row],[Skaits]]*Dati[[#This Row],[Plānotās izmaksas]] -> 130 EUR | H14: =Dati[[#This Row],[Skaits]]*Dati[[#This Row],[Faktiskās izmaksas]] -> 0 EUR
B15: Grīda | C15: Lamināts (daudzums kvadrātmetros) | D15: 165 | E15: 3.50 EUR | G15: =Dati[[#This Row],[Skaits]]*Dati[[#This Row],[Plānotās izmaksas]] -> 578 EUR | H15: =Dati[[#This Row],[Skaits]]*Dati[[#This Row],[Faktiskās izmaksas]] -> 0 EUR
B16: Veļas mazgāšanas tehnika | C16: Mazgājamā mašīna: standarta | D16: 1 | E16: 500.00 EUR | G16: =Dati[[#This Row],[Skaits]]*Dati[[#This Row],[Plānotās izmaksas]] -> 500 EUR | H16: =Dati[[#This Row],[Skaits]]*Dati[[#This Row],[Faktiskās izmaksas]] -> 0 EUR
B17: Veļas mazgāšanas tehnika | C17: Žāvētājs: standarta | D17: 1 | E17: 375.00 EUR | G17: =Dati[[#This Row],[Skaits]]*Dati[[#This Row],[Plānotās izmaksas]] -> 375 EUR | H17: =Dati[[#This Row],[Skaits]]*Dati[[#This Row],[Faktiskās izmaksas]] -> 0 EUR
B18: Apgaismojums | C18: Apgaismojums: gaismas ķermenis padziļinājumā | D18: 4 | E18: 35.00 EUR | G18: =Dati[[#This Row],[Skaits]]*Dati[[#This Row],[Plānotās izmaksas]] -> 140 EUR | H18: =Dati[[#This Row],[Skaits]]*Dati[[#This Row],[Faktiskās izmaksas]] -> 0 EUR
B19: Ledusskapji | C19: Ledusskapis: atsevišķs, luksus klases | D19: 1 | E19: 1,200.00 EUR | G19: =Dati[[#This Row],[Skaits]]*Dati[[#This Row],[Plānotās izmaksas]] -> 1,200 EUR | H19: =Dati[[#This Row],[Skaits]]*Dati[[#This Row],[Faktiskās izmaksas]] -> 0 EUR
B20: Izlietnes | C20: divdaļīga, nerūsējošā tērauda, luksus klases | D20: 1 | E20: 125.00 EUR | G20: =Dati[[#This Row],[Skaits]]*Dati[[#This Row],[Plānotās izmaksas]] -> 125 EUR | H20: =Dati[[#This Row],[Skaits]]*Dati[[#This Row],[Faktiskās izmaksas]] -> 0 EUR
B21: Ventilācija | C21: Tvaika nosūcējs: ar kanālu, standarta | D21: 1 | E21: 180.00 EUR | G21: =Dati[[#This Row],[Skaits]]*Dati[[#This Row],[Plānotās izmaksas]] -> 180 EUR | H21: =Dati[[#This Row],[Skaits]]*Dati[[#This Row],[Faktiskās izmaksas]] -> 0 EUR
B22: Sienas | C22: Sienu apdares paneļi (daudzums kvadrātmetros) | D22: 70 | E22: 2.00 EUR | G22: =Dati[[#This Row],[Skaits]]*Dati[[#This Row],[Plānotās izmaksas]] -> 140 EUR | H22: =Dati[[#This Row],[Skaits]]*Dati[[#This Row],[Faktiskās izmaksas]] -> 0 EUR
B23: Logi | C23: Bīdāms | D23: 2 | E23: 120.00 EUR | G23: =Dati[[#This Row],[Skaits]]*Dati[[#This Row],[Plānotās izmaksas]] -> 240 EUR | H23: =Dati[[#This Row],[Skaits]]*Dati[[#This Row],[Faktiskās izmaksas]] -> 0 EUR
B24: Citi | G24: =Dati[[#This Row],[Skaits]]*Dati[[#This Row],[Plānotās izmaksas]] -> 0 EUR | H24: =Dati[[#This Row],[Skaits]]*Dati[[#This Row],[Faktiskās izmaksas]] -> 0 EUR
B25: Kopsumma | E25: =SUBTOTAL(109,Dati[Plānotās izmaksas]) -> 4,014.00 EUR | F25: =SUBTOTAL(109,Dati[Faktiskās izmaksas]) -> 0.00 EUR | G25: =SUBTOTAL(109,Dati[Kopējās plānotās izmaksas]) -> 5,375.00 EUR | H25: =SUBTOTAL(109,Dati[Kopējās faktiskās izmaksas]) -> 0.00 EUR
B26: Starpsumma | G26: =SUBTOTAL(109,Dati[Kopējās plānotās izmaksas]) -> 5,375.00 EUR | H26: =SUBTOTAL(109,Dati[Kopējās faktiskās izmaksas]) -> 0.00 EUR
B27: Neparedzētas izmaksas, pievienojiet 30 % | G27: =G26*0.3 -> 1,612.50 EUR | H27: =H26*0.3 -> 0.00 EUR
B28: Kopsumma | G28: =SUM(G26:G27) -> 6,987.50 EUR | H28: =SUM(H26:H27) -> 0.00 EUR
